Workbook

Sheet BP LOT1 2
C1: DEVIS
A16: Référence :
A17: Date :
A18: Client :
A19: DEVIS N°: | B19: 21
A23: NETTOYAGE INDUSTRIEL PONCTUEL DE LOCAUX ET DE SITES
A26: MARCHE N° 159443 LOT 1 : PRESTATIONS DE NETTOYAGE DE LOCAUX
A29: DESIGNATIONS | B29: Qtés indicatives (1) m² | C29: Prix unitaire au m² (HT) (2) | D29: Prix total (1 x 2)
A30: SOL
A31: Balayage humide des sols carrelés | B31: 5000 | C31: 0.12 | D31: =B31*C31 -> 600
A32: Dépoussiérage et passage à la cire des parquets (cirage, lustrage) | B32: 2500 | C32: 0.7 | D32: 1750
A33: Aspiration pour les sols en moquette et les tapis, les shampouiner | B33: 2500 | C33: 0.7 | D33: 1750
A34: Lavage et désinfection des sols | B34: 5000 | C34: 0.23 | D34: 1150
A35: Décapage des sols (mono-brosse, auto-laveuse,…) | B35: 4000 | C35: 0.71 | D35: 2840
A36: Balayage et nettoyage de trottoirs devant les entrées des bâtiments et alentours | B36: 2500 | C36: 0.17 | D36: 425
A38: En cas d’inondation, de déjections ou autres aspiration des eaux sales et/ou des déchets puis nettoyage et désinfection complets de la pièce | B38: 11000 | C38: 0.87 | D38: =B38*C38 -> 9570
A45: DESIGNATIONS | B45: Nbre d'heure indicatif (1) | C45: Prix forfaitaire horaire (HT) (2) | D45: Prix Total (HT) (1 x 2)
A46: · Escalier | B46: 50 | C46: 7.25 | D46: =B46*C46 -> 362.5
A47: Balayage humide et lavage des marches
A48: Essuyage des rampes et des plinthes
A49: · Sanitaires | B49: 30 | C49: 7.25 | D49: =B49*C49 -> 217.5
A50: Lavage, désinfection complets et désodorisation des sanitaires
A51: Nettoyage et détartrage cuvettes, urinoirs, lavabos, miroirs, robinetterie
A52: Socle et balayette propre et désinfectés
A53: Vidage et garnissage des poubelles
A54: Lavage du sol
A55: Nettoyage des faïences murales
A56: · Ascenseurs | B56: 20 | C56: 7.25 | D56: =B56*C56 -> 145
A57: Nettoyage des claviers de sélection des ascenseurs
A58: Nettoyage des miroirs et des vitres
A59: Nettoyage des parois des cabines d’ascenseur
A60: Nettoyage des portes extérieures pour chaque étage
A61: Nettoyage des rainures des glissières de portes
A62: Nettoyage complet des sols selon revêtement
A63: · Cuisines | B63: 20 | C63: 7.25 | D63: =B63*C63 -> 145
A64: Nettoyage, dégraissement et désinfection des équipements de cuisine ou foyer (intérieur / extérieur)
A65: Lavage et désinfection des sols
A66: · Bureaux, salles | B66: 850 | C66: 7.25 | D66: =B66*C66 -> 6162.5
A67: Vidage des corbeilles à papiers
A68: - Vidage et essuyage humide des cendriers
A69: Dépoussiérage par essuyage humide des objets meublants
A70: Nettoyage spécifique des espaces bureau non encombré et du mobilier de rangement
A71: Dépoussiérage matériel informatique
A72: Désinfection des téléphones
A73: Nettoyage et détachage des sièges et chaises de bureau et des salles
A74: Lavage du sol
A75: Dépoussiérage des meubles hauts non encombrés
A76: DESIGNATIONS | B76: Nbre d'heure indicatif (1) | C76: Prix forfaitaire horaire (HT) (2) | D76: Prix Total (HT) (1 x 2)
A77: · Parois | B77: 50 | C77: 7.25 | D77: =B77*C77 -> 362.5
A78: Nettoyage et lavage des portes, des fenêtres, des poignées et de la signalétique
A79: Dépoussiérage des surfaces murales
A80: Nettoyage des plinthes
A81: · Vitrerie | B81: 80 | C81: 7.25 | D81: =B81*C81 -> 580
A82: Enlèvement des traces sur les vitres
A83: Nettoyage complet des vitres (interne et externe
A84: · Entretien des espaces extérieurs | B84: 50 | C84: 7.25 | D84: =B84*C84 -> 362.5
A85: Balayage des espaces extérieurs (espaces libres)
A86: Ramassage des détritus sur tous les espaces libres et espaces verts
A87: Nettoyage du parking et des allées de jardin
C88: TOTAL
C89: TVA | D89: =D88*8.5/100 -> 0
C90: TTC B | D90: =SUM(D88:D89) -> 0
C92: TOTAUX HT (A + B) | D92: =D88+G39 -> 0
C93: TVA (A+ B) | D93: =D89+G40 -> 0
C94: TOTAUX TTC (A + B) | D94: =D90+G41 -> 0
A96: DATE :
A97: SIGNATURE ET CACHET :

Sheet BP LOT1 (hidden)
C1: DEVIS
A8: DIRECTION GENERALE DES SERVICES
A10: Direction Générale Adjointe Chargée des Ressources de la Modernisation et de l’Évaluation des Politiques Publiques
A12: Direction des Ressources Logistiques
A16: Référence :
A17: Date :
A18: Client :
A19: DEVIS N°: | B19: 1
A23: NETTOYAGE INDUSTRIEL PONCTUEL DE LOCAUX ET DE SITES DU CONSEIL GENERAL DE LA MARTINIQUE
A26: MARCHE N° 159443 LOT 1 : PRESTATIONS DE NETTOYAGE DE LOCAUX
A29: DESIGNATIONS | B29: Qtés indicatives (1) m² | C29: Prix unitaire au m² (HT) (2) | D29: Prix total (1 x 2)
A30: SOL
A31: Balayage humide des sols carrelés | B31: 5000 | C31: 0.12 | D31: =B31*C31 -> 600
A32: Dépoussiérage et passage à la cire des parquets (cirage, lustrage) | B32: 2500 | C32: 0.7 | D32: 1750
A33: Aspiration pour les sols en moquette et les tapis, les shampouiner | B33: 2500 | C33: 0.7 | D33: 1750
A34: Lavage et désinfection des sols | B34: 5000 | C34: 0.23 | D34: 1150
A35: Décapage des sols (mono-brosse, auto-laveuse,…) | B35: 4000 | C35: 0.71 | D35: 2840
A36: Balayage et nettoyage de trottoirs devant les entrées des bâtiments et alentours | B36: 2500 | C36: 0.17 | D36: 425
A38: En cas d’inondation, de déjections ou autres aspiration des eaux sales et/ou des déchets puis nettoyage et désinfection complets de la pièce | B38: 11000 | C38: 0.87 | D38: =B38*C38 -> 9570
A45: DESIGNATIONS | B45: Nbre d'heure indicatif (1) | C45: Prix forfaitaire horaire (HT) (2) | D45: Prix Total (HT) (1 x 2)
A46: · Escalier | B46: 50 | C46: 7.25 | D46: =B46*C46 -> 362.5
A47: Balayage humide et lavage des marches
A48: Essuyage des rampes et des plinthes
A49: · Sanitaires | B49: 30 | C49: 7.25 | D49: =B49*C49 -> 217.5
A50: Lavage, désinfection complets et désodorisation des sanitaires
A51: Nettoyage et détartrage cuvettes, urinoirs, lavabos, miroirs, robinetterie
A52: Socle et balayette propre et désinfectés
A53: Vidage et garnissage des poubelles
A54: Lavage du sol
A55: Nettoyage des faïences murales
A56: · Ascenseurs | B56: 20 | C56: 7.25 | D56: =B56*C56 -> 145
A57: Nettoyage des claviers de sélection des ascenseurs
A58: Nettoyage des miroirs et des vitres
A59: Nettoyage des parois des cabines d’ascenseur
A60: Nettoyage des portes extérieures pour chaque étage
A61: Nettoyage des rainures des glissières de portes
A62: Nettoyage complet des sols selon revêtement
A63: · Cuisines | B63: 20 | C63: 7.25 | D63: =B63*C63 -> 145
A64: Nettoyage, dégraissement et désinfection des équipements de cuisine ou foyer (intérieur / extérieur)
A65: Lavage et désinfection des sols
A66: · Bureaux, salles | B66: 850 | C66: 7.25 | D66: =B66*C66 -> 6162.5
A67: Vidage des corbeilles à papiers
A68: - Vidage et essuyage humide des cendriers
A69: Dépoussiérage par essuyage humide des objets meublants
A70: Nettoyage spécifique des espaces bureau non encombré et du mobilier de rangement
A71: Dépoussiérage matériel informatique
A72: Désinfection des téléphones
A73: Nettoyage et détachage des sièges et chaises de bureau et des salles
A74: Lavage du sol
A75: Dépoussiérage des meubles hauts non encombrés
A76: DESIGNATIONS | B76: Nbre d'heure indicatif (1) | C76: Prix forfaitaire horaire (HT) (2) | D76: Prix Total (HT) (1 x 2)
A77: · Parois | B77: 50 | C77: 7.25 | D77: =B77*C77 -> 362.5
A78: Nettoyage et lavage des portes, des fenêtres, des poignées et de la signalétique
A79: Dépoussiérage des surfaces murales
A80: Nettoyage des plinthes
A81: · Vitrerie | B81: 80 | C81: 7.25 | D81: =B81*C81 -> 580
A82: Enlèvement des traces sur les vitres
A83: Nettoyage complet des vitres (interne et externe
A84: · Entretien des espaces extérieurs | B84: 50 | C84: 7.25 | D84: =B84*C84 -> 362.5
A85: Balayage des espaces extérieurs (espaces libres)
A86: Ramassage des détritus sur tous les espaces libres et espaces verts
A87: Nettoyage du parking et des allées de jardin
C88: TOTAL
C89: TVA | D89: =D88*8.5/100 -> 0
C90: TTC B | D90: =SUM(D88:D89) -> 0
C92: TOTAUX HT (A + B) | D92: =D88+G39 -> 0
C93: TVA (A+ B) | D93: =D89+G40 -> 0
C94: TOTAUX TTC (A + B) | D94: =D90+G41 -> 0
A96: DATE :
A97: SIGNATURE ET CACHET :

Sheet BP LOT2 (hidden)
A1: MARCHE A PROCEDURE ADAPTEE DE FOURNITURES ET DE SERVICES
A4: COLLECTIVITE DE MARTINIQUE
A5: Rue GASTON DEFFERRE
A6: 97201 FORT DE FRANCE
A10: NETTOYAGE INDUSTRIEL PONCTUEL DE LOCAUX ET DE SITES DU CONSEIL GENERAL DE LA MARTINIQUE
A13: DEVIS
A15: MARCHE N° 159444 LOT 2 : PRESTATIONS DE NETTOYAGE LORS DE MANIFESTATIONS
A19: DIRECTION : | C19: NOM DU RESPONSABLE :
A20: SERVICE : | C20: CORRESPONDANT :
A21: ADRESSE LIVRAISON : | C21: N° DE POSTE :
A22: DATE DE LA COMMANDE : | C22: DESTINATAIRE :
B25: Nbre d'heure indicatif (1) | C25: Prix forfaitaire horaire (HT) (2) | D25: Prix Total (HT) (1 x 2)
A26: · Nettoyage avant et après manifestation | B26: 600 | C26: 8.29 | D26: =B26*C26 -> 4974
A27: Nettoyage des jardins
A28: Nettoyage des parkings et des allées extérieures
A29: Ramassage des petits déchets sur l’ensemble du site (y compris parking et pelouse)
A30: Nettoyage complet des sanitaires, des bureaux, des salles et de la cuisine
A31: Balayage humide des sols intérieurs et extérieurs
A32: Nettoyage des vitres et jalousies
A33: Dépoussiérage du mobilier
A34: Nettoyage des bars
A35: Rangement des chaises
A36: · Nettoyage pendant manifestation | B36: 500 | C36: 7.99 | D36: =B36*C36 -> 3995
A37: Ramassage des petits déchets sur l’ensemble du site
A38: Nettoyage des sanitaires
A39: Nettoyage humide des sols (en cas de nécessité)
C40: TOTAL | D40: =SUM(D26:D36) -> 8969
C41: TVA | D41: =D40*8.5/100 -> 762.365
C42: TTC | D42: =SUM(D40:D41) -> 9731.365
A45: DATE :
A46: SIGNATURE ET CACHET :

Sheet Feuil1
